Cogmind - Beta 13 @@@ ROGUE MODE // 2024.04.01 @ 16:51:55 Player: bradybot Result: Destroyed by G-47 Trooper with Particle Gun Performance ------------- Evolutions (2) 1000 Regions Visited (3) 600 Robots Destroyed (57) 285 Value Destroyed (1808) 1808 Prototype IDs (0) 0 Alien Tech Used (0) 0 Bonus (-29) -29 TOTAL SCORE: 3664 Bonus ------- High Alert Combat Kills 6 Friendly Fire -35 Cogmind --------- Core Integrity 0/550 Matter 268/300 Energy 94/290 System Corruption 4% Temperature Cool (71) Movement Core (1000) Ox19 Location -8/Materials Parts ------- > --- POWER (1) -------- Improved Deuterium Engine > --- PROPULSION (2) --- (None) > --- UTILITY (4) ------ High-capacity Storage Unit Weapon Cycler (fused) Weapon Cycler Hacking Suite > --- WEAPON (4) ------- Particle Gun Shotgun Katana > --- INVENTORY (20) --- Nuclear Core Light Treads Armored Treads Aluminum Leg Aluminum Leg Wheel Flight Unit High-capacity Storage Unit Weight Redist. System Trap Scanner Improved Sensor Array Weapon Cycler Improved Field Recycling Unit (0) Cobbler Unit Datajack Peak State ------------ > --- POWER ------------ Improved Deuterium Engine > --- PROPULSION ------- Spiked Treads Armored Treads > --- UTILITY ---------- High-capacity Storage Unit Weapon Cycler Weapon Cycler Hacking Suite > --- WEAPON ----------- Heavy Assault Rifle Heavy Assault Rifle Shock Bomb Launcher Katana > --- INVENTORY -------- Nuclear Core Improved Deuterium Engine Light Treads Aluminum Leg Titanium Leg Flight Unit Heat Sink Heat Sink Heat Sink Heat Sink High-capacity Storage Unit High-capacity Storage Unit Weight Redist. System Weapon Cycler Weapon Cycler Improved Field Recycling Unit Cobbler Unit Beam Rifle Datajack [Rating: 35] Favorites ----------- Power Ion Engine Engine Ion Engine Power Core Nuclear Core Propulsion Wheel Treads Spiked Treads Leg Aluminum Leg Wheel Wheel Utility Weapon Cycler Device Weapon Cycler Storage Large Storage Unit Processor Improved Terrain Scan Processor Hackware Hacking Suite Protection Light Armor Plating Weapon Battle Cannon Energy Gun Makeshift Laser Energy Cannon Subdweller Beam Cannon Ballistic Gun Heavy Assault Rifle Ballistic Cannon Battle Cannon Launcher Grenade Launcher Special Weapon Flamer Slashing Weapon Katana Build | -11 -10 -10 -8 ------- Run | Yrd Mat Sub Mat Slots Evolved 4 | . . . 4 Power . | . . . . Propulsion . | . . . . Utility 2 | . . . 2 Weapon 2 | . . . 2 Parts Attached 87 | 11 8 27 41 Power 8 | 1 1 . 6 Engine 6 | 1 1 . 4 Core 2 | . . . 2 Reactor . | . . . . Propulsion 21 | 4 1 8 8 Treads 6 | . . 3 3 Leg 5 | 2 . . 3 Wheel 10 | 2 1 5 2 Hover . | . . . . Flight . | . . . . Utility 20 | 3 3 3 11 Device 9 | 2 1 1 5 Storage 5 | 1 2 1 1 Processor 1 | . . . 1 Hackware 1 | . . . 1 Protection 4 | . . 1 3 Artifact . | . . . . Weapon 38 | 3 3 16 16 Energy Gun 5 | 1 . 1 3 Energy Cannon 6 | . . 5 1 Ballistic Gun 8 | 2 . . 6 Ballistic Cannon 7 | . 1 5 1 Launcher 7 | . 2 3 2 Special Weapon 3 | . . 2 1 Impact Weapon . | . . . . Slashing Weapon 2 | . . . 2 Piercing Weapon . | . . . . Special Melee Weapon . | . . . . Unidentified Prototypes . | . . . . Parts Lost 29 | . . 6 23 Power 4 | . . . 4 Propulsion 7 | . . 2 5 Utility 4 | . . 1 3 Weapon 14 | . . 3 11 Highest Loss Streak 11 | . . 3 11 To Critical Strikes . | . . . . Average Slot Usage (%) 88 | . 99 84 88 Engine 10 | . 14 14 4 Core 1 | . . . 2 Treads 7 | . . 7 11 Leg 1 | . . . 3 Wheel 11 | . 28 14 1 Device 7 | . 14 2 10 Storage 11 | . 14 14 7 Hackware 2 | . . . 7 Protection 3 | . . 3 4 Energy Gun 1 | . . . 3 Energy Cannon 6 | . . 10 3 Ballistic Gun 5 | . 6 . 11 Ballistic Cannon 9 | . 7 16 1 Launcher 3 | . 12 1 3 Slashing Weapon 2 | . . . 5 Naked Turns . | . . . . Heaviest Build 228 | 10 32 216 228 Greatest Support 46 | 20 20 40 46 Greatest Overweight (x) 71 | . 1 10 71 Average Overweight (x) 2 | . . 3 1 Largest Inventory Capacity 35 | 5 15 35 35 Average Capacity 21 | 5 13 25 20 Most Carried 20 | 5 15 19 20 Average Carried 13 | 3 10 15 14 Final Capacity 35 | 5 15 35 20 Final Carried 18 | 3 14 18 16 Class Distribution -------------------- 51% | Mutant 26% | Hauler-Mutant 14% | Gunner 5% | Hauler-Tank Dominant Class ---------------- Mutant | -10/Materials Hauler-Mutant | -10/Subcaves Gunner | -8/Materials Resources | -11 -10 -10 -8 ----------- Run | Yrd Mat Sub Mat Matter Collected 2119 | 396 70 817 836 Remotely . | . . . . Salvage Created 1634 | 89 206 214 1125 Parts 106 | 6 31 15 54 Haulers Intercepted 1 | . . . 1 Recyclers Shooed . | . . . . Parts Field Recycled . | . . . . Retrieved Matter . | . . . . Parts Self-Destructed 5 | . . 5 . Prevented . | . . . . Kills | -11 -10 -10 -8 ------- Run | Yrd Mat Sub Mat Combat Hostiles Destroyed 45 | 1 11 9 24 Melee 5 | . . . 5 Guns 14 | 1 2 . 11 Cannons 10 | . . 5 5 AOE 16 | . 9 4 3 Classes Destroyed 11 | 3 2 1 5 Worker 3 | 1 2 . . Tunneler 1 | 1 . . . Hauler 1 | . . . 1 Operator 2 | . . . 2 Watcher 5 | . 3 . 2 Swarmer 13 | . 6 3 4 Grunt 20 | 1 5 . 14 Brawler 1 | . . . 1 Duelist 1 | . . . 1 Sentry 4 | . . . 4 Subdweller 6 | . . 6 . Best Kill Streak 7 | 3 7 3 4 Combat Bots Only 5 | 1 5 3 4 Max Kills in Single Turn 3 | 1 3 2 2 Gunslinging . | . . . . Exploded 3 | . 3 1 2 Melee 1 | . . . 1 Uniques/NPCs Destroyed . | . . . . Combat | -11 -10 -10 -8 -------- Run | Yrd Mat Sub Mat Hostile Shots Fired 268 | 2 18 47 201 Missed 61 | . 4 17 40 Damage Taken 3790 | 24 193 813 2760 Core 724 | 10 28 129 557 Absorbed by Shields . | . . . . Redirected to Shielding 24 | . . . 24 Regen/Repaired (Parts) 45 | . 45 . . Core Remaining (%) 64 | 96 . 33 . Volleys Fired 147 | 4 24 38 81 Largest 4 | 2 2 2 4 Hottest 226 | 70 65 119 226 Shots Fired 290 | 8 36 70 176 Gun 144 | 8 17 . 119 Cannon 113 | . 7 63 43 Launcher 31 | . 12 7 12 Special 2 | . . . 2 Kinetic 167 | 4 24 38 101 Thermal 92 | 4 . 25 63 Explosive 20 | . 12 7 1 Electromagnetic 11 | . . . 11 Robot Hit Streak 14 | 6 3 11 14 Robot Miss Streak 6 | . 2 3 6 Penetration Max . | . . . . Secondary Targets 2 | . . . 2 Max Gunslinging Chain 1 | . . . 1 Shots Hit Robots 160 | 6 15 38 101 Core Hits 98 | 4 17 20 57 Critical Kills 2 | . . 1 1 Critical Parts Destroyed . | . . . . Critical Strikes 12 | 1 1 4 6 Burn 3 | 1 . . 2 Meltdown 1 | . . . 1 Destroy 4 | . . 4 . Blast 1 | . 1 . . Sever 3 | . . . 3 Melee Attacks 12 | . . . 12 Impact . | . . . . Slashing 12 | . . . 12 Piercing . | . . . . Sneak Attacks . | . . . . Combat Hostiles . | . . . . Follow-up Attacks . | . . . . Damage Inflicted 4398 | 80 882 1136 2300 Guns 1330 | 75 129 . 1126 Cannons 1124 | . 54 693 377 Explosions 1575 | . 699 443 433 Melee 338 | . . . 338 Ramming 8 | 5 . . 3 Kinetic 1630 | 25 183 444 978 Thermal 877 | 50 . 249 578 Explosive 1352 | . 699 443 210 Electromagnetic 193 | . . . 193 Impact . | . . . . Slashing 338 | . . . 338 Piercing . | . . . . Highest Corruption 4 | . 4 4 4 Average Corruption 3 | . 3 4 3 Corruption Purged . | . . . . Corruption Blocked . | . . . . Effects 90 | . 8 55 27 Message Errors 32 | . 2 21 9 Matter Fused 16 | . 4 8 4 Heat Flow Errors 15 | . 1 8 6 Energy Discharges 6 | . 1 2 3 Parts Rejected 1 | . . 1 . Parts Fused 2 | . . 1 1 Data Loss (minor) 7 | . . 7 . Data Loss (major) 6 | . . 6 . Misfires 3 | . . 1 2 Weapon Failures 2 | . . . 2 Overload Shots . | . . . . Overflow Damage 83 | . 31 17 35 Projectiles 51 | . 13 17 21 Explosions 18 | . 18 . . Melee 14 | . . . 14 Knockbacks 8 | . 1 4 3 Impact . | . . . . Kinetic 8 | . 1 4 3 Secondary . | . . . . Self-Inflicted Damage 241 | 2 47 . 192 Shots 10 | . 1 . 9 Rammed 1 | 1 . . . Targets Rammed 3 | 1 . . 2 Kicked 2 | . . . 2 Crushed . | . . . . Highest Temperature 1232 | 30 232 294 1232 Average Temperature 246 | 13 50 116 296 Received Heat Transfer 1500 | 12 51 96 1341 Effects 44 | . . . 44 Shutdowns 4 | . . . 4 Energy Bleed 4 | . . . 4 Interference 6 | . . . 6 Matter Decay 3 | . . . 3 Short Circuit 5 | . . . 5 Damage (minor) 5 | . . . 5 Damage (major) 15 | . . . 15 Damage (core) 2 | . . . 2 Siege Activations . | . . . . Robots Corrupted . | . . . . Combat Hostiles . | . . . . Parts Fried 1 | . . . 1 Impact Corruptions . | . . . . Robots Melted 1 | . . . 1 Combat Hostiles . | . . . . Parts Melted 4 | . . 1 3 Heat Transferred 2208 | 222 . 481 1505 Parts Sabotaged . | . . . . Parts Stolen . | . . . . Parts Stripped . | . . . . Power Chain Reactions 3 | . . . 3 Alert | -11 -10 -10 -8 ------- Run | Yrd Mat Sub Mat Peak Influence 532 | 30 532 . 399 Initial 19 | . 19 . . Average 172 | 19 341 . 118 Maximum Alert Level 2 | . 2 . 1 Low Security (%) 54 | 100 11 . 67 Level 1 35 | . 53 . 32 Level 2 9 | . 35 . . Level 3 . | . . . . Level 4 . | . . . . Level 5 . | . . . . High Security . | . . . . Max Security . | . . . . Squads Dispatched 6 | . 1 . 5 Investigation 5 | . 1 . 4 Extermination . | . . . . Reinforcement 1 | . . . 1 Assault . | . . . . Garrison . | . . . . Intercept . | . . . . Searches Triggered . | . . . . Construction Impeded . | . . . . Haulers Reinforced . | . . . . Active Scanning Responses . | . . . . Cargo Convoy Interrupts . | . . . . Stealth | -11 -10 -10 -8 --------- Run | Yrd Mat Sub Mat Distress Signals . | . . . . Communications Jammed . | . . . . Distress Signals . | . . . . Times Spotted 74 | 1 14 22 37 Peak Tracking Total 6 | 1 3 4 6 Tactical Retreats 1 | . . . 1 Traps | -11 -10 -10 -8 ------- Run | Yrd Mat Sub Mat Traps Triggered 9 | . 3 4 2 Indirectly 1 | . . . 1 Trap Hack Attempts . | . . . . Triggered . | . . . . Disarmed . | . . . . Reprogrammed . | . . . . Reused . | . . . . Traps Extracted . | . . . . Installed . | . . . . Triggered . | . . . . Machines | -11 -10 -10 -8 ---------- Run | Yrd Mat Sub Mat Machines Disabled 15 | . 9 . 6 Max in Single Turn 3 | . 2 . 3 Machines Repaired . | . . . . Machines Dismantled . | . . . . Machines Sabotaged . | . . . . Overloaded Fab Kills . | . . . . Hacking | -11 -10 -10 -8 --------- Run | Yrd Mat Sub Mat Machines Accessed 14 | . 6 1 7 Terminals 10 | . 5 . 5 Fabricators . | . . . . Repair Stations 1 | . 1 . . Recycling Units 1 | . . . 1 Scanalyzers 1 | . . . 1 Garrison Access . | . . . . Total Hacks 37 | . 12 4 21 Successful 23 | . 9 4 10 Failed 14 | . 3 . 11 Catastrophic 1 | . . . 1 Database Lockouts . | . . . . Manual . | . . . . Terminals 26 | . 10 . 16 Fabricators . | . . . . Repair Stations 2 | . 2 . . Recycling Units 2 | . . . 2 Scanalyzers 3 | . . . 3 Garrison Access . | . . . . Terminal Hacks 18 | . 7 4 7 Record 14 | . 7 4 3 Robot Analysis 2 | . . . 2 Emergency Access Points 1 | . . . 1 Zone Layout 1 | . . . 1 Fabricator Hacks . | . . . . Repair Station Hacks 2 | . 2 . . Scan Component 1 | . 1 . . Repair 1 | . 1 . . Recycling Unit Hacks 1 | . . . 1 Report Inventory 1 | . . . 1 Scanalyzer 2 | . . . 2 Insert Component 1 | . . . 1 Analyze 1 | . . . 1 Garrison Access Hacks . | . . . . Unauthorized Hacks . | . . . . Terminals . | . . . . Fabricators . | . . . . Repair Stations . | . . . . Recycling Units . | . . . . Scanalyzers . | . . . . Garrison Access . | . . . . Data Cores Recovered 1 | . . . 1 Used . | . . . . Hacking Detections 9 | . 3 . 6 Full Trace Events 6 | . 2 . 4 Feedback Events 1 | . 1 . . Corruption 1 | . 1 . . Feedback Blocked . | . . . . Robot Schematics Acquired . | . . . . Robots Built . | . . . . Authchips . | . . . . Time . | . . . . Total Robot Build Rating . | . . . . Part Schematics Acquired . | . . . . Parts Built . | . . . . Authchips . | . . . . Time . | . . . . Total Part Build Rating . | . . . . Parts Repaired 1 | . 1 . . Time 26 | . 26 . . Parts Recycled . | . . . . Recycled Matter . | . . . . Retrieved Matter . | . . . . Retrieved Components . | . . . . Parts Scanalyzed 1 | . . . 1 Part Schematics Acquired . | . . . . Parts Damaged . | . . . . Bothacking | -11 -10 -10 -8 ------------ Run | Yrd Mat Sub Mat Used RIF Installer . | . . . . Robots Hacked . | . . . . Non-combat . | . . . . Combat . | . . . . Robot Hacks Applied . | . . . . Relay Couplers Released . | . . . . Fabnet Peak Effective % . | . . . . Robots Rewired . | . . . . Allies Hacked . | . . . . Hacks Repelled . | . . . . Allies | -11 -10 -10 -8 -------- Run | Yrd Mat Sub Mat Total Allies . | . . . . Largest Group . | . . . . Highest-Rated Group . | . . . . Highest-Rated Ally . | . . . . Total Orders . | . . . . Ally Attacks . | . . . . Total Damage . | . . . . Kills . | . . . . Allies Corrupted . | . . . . Allies Melted 1 | . . 1 . Intel | -11 -10 -10 -8 ------- Run | Yrd Mat Sub Mat Robot Analysis Total 2 | . . . 2 Derelict Logs Recovered 1 | . . 1 . Drone Launches . | . . . . Drone Recoveries . | . . . . Exploration | -11 -10 -10 -8 ------------- Run | Yrd Mat Sub Mat Turns Passed 6073 | 233 902 2744 2194 Spaces Moved 3067 | 206 867 1225 769 Core 41 | 30 . . 11 Treads 641 | . . 116 525 Legs 156 | 5 . . 151 Wheels 2229 | 171 867 1109 82 Hover . | . . . . Flight . | . . . . Fastest Speed 50 | 50 80 95 50 Average Speed 175 | 76 92 208 240 Slowest Speed 3600 | 120 95 1160 3600 Overloaded Moves . | . . . . Propulsion Burnouts . | . . . . Robots Hopped . | . . . . Cave-ins Triggered . | . . . . Exploration Rate (%) 48 | 8 99 57 31 Regions Visited 3 Branch Regions 1 Pre-discovered Areas . | . . . . Known Exits Taken . | . . . . Unknown Exits Taken 3 | 1 1 1 . Scrap Searched 4 | . . 4 . Spaces Dug . | . . . . Terrain Destroyed 226 | . 117 47 62 Melee . | . . . . Projectile 20 | . . 4 16 AOE 206 | . 117 43 46 Terrain Rammed . | . . . . Walls Destroyed . | . . . . Machines Disabled . | . . . . Actions | -11 -10 -10 -8 --------- Run | Yrd Mat Sub Mat Total 3529 | 275 931 1342 981 Wait 54 | 34 . 8 12 Move 3064 | 205 866 1224 769 Hop . | . . . . Pick Up 116 | 14 22 32 48 Fast Attach . | . . . . Attach 53 | 10 3 10 30 Detach 3 | 2 1 . . Swap 34 | 1 5 17 11 Drop 43 | 4 10 13 16 Fire 147 | 4 24 38 81 Melee 12 | . . . 12 Ram 1 | 1 . . . Kick 2 | . . . 2 Crush . | . . . . Escape Stasis . | . . . . Rewire . | . . . . Trap . | . . . . Miscellaneous . | . . . . Route ------- -11/Scrapyard -10/Materials (discovered 6 exits: [*Mat x3] / [*Min x2] / *Sub) -10/Subcaves (discovered 2 exits: *Mat x2) -8/Materials (discovered 1 exit: Fac) History --------- Turn | Location | Event 2 | -11/Scrapyard | Met Revision 17 81 | -11/Scrapyard | Discovered new exit (range 8) 234 | -11/Scrapyard | Entered Materials 317 | -10/Materials | Build established: Mutant 366 | -10/Materials | Discovered new exit (range 15) 555 | -10/Materials | Repaired Grenade Launcher 603 | -10/Materials | Discovered new exit (range 15) 698 | -10/Materials | Discovered new exit (range 14) 905 | -10/Materials | Discovered new exit (range 16) 957 | -10/Materials | Discovered new exit (range 9) 964 | -10/Materials | Discovered new exit (range 11) 1136 | -10/Materials | Entered Subcaves 1139 | -10/Subcaves | Shifting Twisted Machinery released Mak. Laser 1173 | -10/Subcaves | A swath of the cavern ceiling suddenly collapsed 1176 | -10/Subcaves | Ambushed by swarm of Subdwellers 1568 | -10/Subcaves | Ambushed by Subdweller buried in earth 1639 | -10/Subcaves | Core integrity fell below 50% 1691 | -10/Subcaves | Lost 3 parts (1u2w) 1708 | -10/Subcaves | Visited Clippyterm 1712 | -10/Subcaves | Learned 40 Factory zone layouts 1785 | -10/Subcaves | Discovered new exit (range 15) 2160 | -10/Subcaves | Learned 4 Materials zone layouts 2309 | -10/Subcaves | Shifting Twisted Machinery released Flamer 2409 | -10/Subcaves | Shifting Twisted Machinery released Battle Rifle 2434 | -10/Subcaves | Discovered new exit (range 5) 2449 | -10/Subcaves | Shifting Twisted Machinery released Scrap Shield 2641 | -10/Subcaves | Build established: Hauler-Mutant 2704 | -10/Subcaves | Shifting Twisted Machinery released Sub. Beam Cannon 2707 | -10/Subcaves | Shifting Twisted Machinery released Sub. Shrapnel Launcher 3880 | -10/Subcaves | Entered Materials 3880 | -8/Materials | Evolved 4 slots: Utility x2, Weapon x2 3881 | -8/Materials | Identified exit to Factory 4179 | -8/Materials | Build established: Hauler-Tank 4341 | -8/Materials | Core integrity fell below 50% 4383 | -8/Materials | Lost 11 parts (1p2n2u6w) 4653 | -8/Materials | Build established: Mutant 5328 | -8/Materials | Build established: Gunner 5599 | -8/Materials | Lost 3 parts (1n2w) 6042 | -8/Materials | Core integrity fell below 20% 6074 | -8/Materials | Destroyed by G-47 Trooper with Particle Gun Last Messages --------------- 06059_ K-01 Serf collects debris. 06065_ Critical hit (Burn: +37). 06065_ K-01 Serf collects debris. 06066_ Extracted 50 matter. 06067_ Titanium Leg destroyed. 06067_ K-01 Serf collects debris. 06068_ R-06 Scavenger collects Unknown Engine. 06069_ Imp. Deuterium Engine destroyed. 06069_ Acquired 34 matter. 06070_ K-01 Serf collects debris. 06070_ R-06 Scavenger collects Sml. Matter Pod. 06072_ R-06 Scavenger collects Wheel. 06073_ Aluminum Leg destroyed. 06073_ K-01 Serf collects debris. 06073_ R-06 Scavenger collects Mining Laser. 06074_ JUOMUFITCSEJ4EBOZSY>CYJ8SV1 [Achievement: First Step to Greatness] The achievement interface (ESC then open Records) offers an effective way to explore all of your earned achievements as well as seek out new goals for future runs. Map ----- +----------------------------------------------------+ | #+##![!= / + # ??????????????????????????? | | += === # # # ??????????????????????????? | | # ## " # # # ??????????????????????????? | | # ## # #########??????????????????????????? | | # ######### #########??????????????????????????? | | # ######### ##?????????????????????????????????? | | # ##?????## ##?????????????????????????????????? | | ##?????## ##?????????????????????????????????? | | ##?????## ##?????????????????????????????????? | | ##?????## ##?????????????????????????????????? | | ######### ##?????????????????????????????????? | | ### # ##?????????????????????????????????? | | ## # ##?????????????????????????????????? | | ## # ##???##########????????????????????? | | # ## + ##???# #????????????????????? | | # ## %# ##???# #????????????????????? | | # ### # ##???# #????????????????????? | | # ######### ##???# [[[ #????????????????????? | | # # # #????# [[[ #????????????????????? | | # # # #????#! [ #????????????????????? | | # # # #????# #????????????????????? | | # # # #????# #????????????????????? | | ? # #% #????#| #????????????????????? | | ? # + ##########+#############/#####?????? | | ? # # % a u rr kt*!!=g! % ??? | | ? # ########### u@ **k%*!!%!%*[% ??? | | ? # #?????????# *==*!!*%g[=% ??? | | + #?????????####+######+############?????? | | # #??????????? ???????! ???????????????? | | ??#########????????? ?????????? ?????????????? | | ?????????????????? !??????????? #????????????? | | ????????????????? ?????????????? #????????????? | | #??????# """ """ # #?????# """ # | | #??????# """ """ # #?????# # | | #??????# """ """ # #?############ | | ###### #??????# # #?# #? | | ?????# #??????#####################?# #? | | ?????# #????????????????????????????# #? | | ?????# #????????????????????????????# #? | | ?????# #????????????????????????????# ## | | ###### ????????????????????????????# + | | #????????????????????????????# ## | | ########????????????????????????????# #? | | #???????????????????????########????#####+#####? | | ####????????????????????# #??????# #???? | | #????????????????????# ######?# #???? | | #????????????????????# + #?# #???? | | ############??????????# #### #?# ##### | | ###### #??????????# #??# #?## ### | | ?????# """ #??????????# #??# #??# #?# | +----------------------------------------------------+ Best States ------------- Heat Dissipation 35 Energy Generation 16 Energy Capacity 290 Matter Stores 400 Matter Capacity 400 Sight Range 16 Terrain Scan Density 110 Additional Mass Support 6 Armor Coverage 150 Weapon Shielding 33 Weapon Cycling 30 Evasion (%) 50 Recoil Reduction 2 Offensive Hacking 10 Item Schematics ----------------- None Robot Schematics ------------------ None Fabricated ------------ Nothing Alien Tech Used ----------------- None Achievements -------------- Crack Shot First Step to Greatness It's Just You Librarian Loot Pinata One Hack Too Far Part-time Mechanic Remodeling Storm Trooper Tank Challenges ------------ None Game ------ Seed DimensionalNetworkPurifier Manual? 0 Play Time 01:44:48 Cumulative 1.7 hours Start 2024.04.01 @ 15:04:00 End 2024.04.01 @ 16:51:55 Sessions 3 Manual Loads 0 Difficulty Rogue Special Mode None Game No. 2 Rogue 2 Adventurer 0 Explorer 0 Win Type - Total 0 Types 0/0/0/0/0/0/0/0/0 Lore% 2 Gallery% 4 Achievement% 3 Wizard Run 0 Options --------- Layout 0 ASCII 0 Keyboard 0 Movement Arrows Keybinds 0 Fullscreen 2 Font 24/Smallcaps Map View 76x50 Zoom Use 0% Tactical HUD 1 Map Filters NONE Filters NONE Steam 1 RUN: f50bd94f-b10c-4cdb-b1d2-98204420be4e